[Event "AUT Bundesliga 2022-23"]
[Site "Jenbach"]
[Date "2022.11.03"]
[Round "1.1"]
[White "Prusikin, Michael"]
[Black "Idani, Pouya"]
[Result "1/2-1/2"]
[ECO "E46"]
[WhiteElo "2517"]
[BlackElo "2623"]
[Annotator "ChessBase"]
[PlyCount "66"]
[EventDate "2022.11.03"]
[EventType "team-tourn"]
[EventCountry "AUT"]
[SourceTitle "playchess.com"]
[Source "ChessBase"]
[SourceQuality "1"]
[TimeControl "40/5400+30:1800+30"]

1. d4 {[%emt 0:00:02]} Nf6 {[%emt 0:00:07]} 2. c4 {[%emt 0:00:04]} e6 {[%emt 0:00:04]} 3. Nc3 {[%emt 0:00:51]} Bb4 {[%emt 0:00:06]} 4. e3 {[%emt 0:00:04]} O-O {[%emt 0:00:10]} 5. Bd2 {[%emt 0:00:47]} c5 {[%emt 0:00:16]} 6. a3 {[%emt 0:01:23]} Bxc3 {[%emt 0:00:06]} 7. Bxc3 {[%emt 0:00:03]} Ne4 {[%emt 0:00:07]} 8. Rc1 {[%emt 0:01:24]} d6 {[%emt 0:08:03]} 9. Nf3 {[%emt 0:03:45]} Qe7 {[%emt 0:03:28]} 10. Be2 {[%emt 0:10:00]} Nxc3 {[%emt 0:04:03]} 11. Rxc3 {[%emt 0:00:12]} e5 {[%emt 0:00:05]} 12. O-O {[%emt 0:01:28]} Nc6 {[%emt 0:04:01]} 13. d5 {[%emt 0:03:17]} Nb8 {[%emt 0:00:16]} 14. e4 {[%emt 0:01:16]} f5 {[%emt 0:02:17]} 15. exf5 {[%emt 0:05:15]} Bxf5 {[%emt 0:00:11]} 16. Nd2 {[%emt 0:00:18]} Nd7 {[%emt 0:03:11]} 17. Bd3 {[%emt 0:04:44]} Bxd3 {[%emt 0:03:23]} 18. Rxd3 {[%emt 0:00:02]} Nf6 {[%emt 0:01:12]} 19. Re3 {[%emt 0:03:28]} Qd7 {[%emt 0:03:56]} 20. f4 {[%emt 0:04:52]} exf4 {[%emt 0:08:30]} 21. Rxf4 {[%emt 0:00:22]} Rae8 {[%emt 0:01:27]} 22. Ne4 {[%emt 0:06:32]} Nxe4 {[%emt 0:02:41]} 23. Rfxe4 {[%emt 0:00:30]} Rxe4 {[%emt 0:01:53]} 24. Rxe4 {[%emt 0:00:03]} Re8 {[%emt 0:00:07]} 25. Qe2 {[%emt 0:01:09]} Rxe4 {[%emt 0:00:05]} 26. Qxe4 {[%emt 0:00:04]} h6 {[%emt 0:00:16]} 27. h4 {[%emt 0:08:21]} Qf7 {[%emt 0:01:34]} 28. b3 {[%emt 0:01:23]} Qf6 {[%emt 0:02:24]} 29. Qe8+ {[%emt 0:02:56]} Kh7 {[%emt 0:00:06]} 30. h5 {[%emt 0:00:33]} Qd4+ {[%emt 0:00:12]} 31. Kh2 {[%emt 0:00:30]} Qh4+ {[%emt 0:00:08]} 32. Kg1 {[%emt 0:00:05]} Qd4+ {[%emt 0:00:05]} 33. Kh2 {[%emt 0:00:03]} Qh4+ 1/2-1/2

[Event "AUT Bundesliga 2022-23"]
[Site "Jenbach"]
[Date "2022.11.03"]
[Round "1.2"]
[White "Janzelj, Tim"]
[Black "Berchtenbreiter, Maximilian"]
[Result "1-0"]
[ECO "A50"]
[WhiteElo "2456"]
[BlackElo "2509"]
[Annotator "ChessBase"]
[PlyCount "85"]
[EventDate "2022.11.03"]
[EventType "team-tourn"]
[EventCountry "AUT"]
[SourceTitle "playchess.com"]
[Source "ChessBase"]
[SourceQuality "1"]
[TimeControl "40/5400+30:1800+30"]

1. d4 {[%emt 0:00:06]} Nf6 {[%emt 0:00:05]} 2. c4 {[%emt 0:00:09]} a6 {[%emt 0:00:11]} 3. Nc3 {[%emt 0:00:14]} c5 {[%emt 0:00:04]} 4. dxc5 {[%emt 0:00:34]} e6 {[%emt 0:00:06]} 5. e4 {[%emt 0:00:34]} Qc7 {[%emt 0:00:05]} 6. b4 {[%emt 0:01:02]} b6 {[%emt 0:19:35]} 7. cxb6 {[%emt 0:00:28]} Qe5 {[%emt 0:00:02]} 8. Bd2 {[%emt 0:28:40]} Bxb4 {[%emt 0:00:10]} 9. Nf3 {[%emt 0:00:09]} Qa5 {[%emt 0:05:34]} 10. Qb3 {[%emt 0:00:26]} Nc6 {[%emt 0:00:07]} 11. Bd3 {[%emt 0:06:18]} Rb8 {[%emt 0:03:46]} 12. O-O {[%emt 0:03:22]} Rxb6 {[%emt 0:00:14]} 13. a3 {[%emt 0:12:36]} Bxc3 {[%emt 0:16:37]} 14. Qxc3 {[%emt 0:00:02]} Qxc3 {[%emt 0:00:04]} 15. Bxc3 {[%emt 0:00:03]} Rb3 {[%emt 0:00:22]} 16. Rfc1 {[%emt 0:00:03]} d6 {[%emt 0:00:34]} 17. Nd2 {[%emt 0:07:13]} Rb8 {[%emt 0:00:17]} 18. Rab1 {[%emt 0:02:11]} Rxb1 {[%emt 0:02:12]} 19. Rxb1 {[%emt 0:00:02]} e5 {[%emt 0:03:27]} 20. Bc2 {[%emt 0:14:53]} Kd8 {[%emt 0:02:08]} 21. Nb3 {[%emt 0:06:29]} Re8 {[%emt 0:08:03]} 22. c5 {[%emt 0:02:15]} dxc5 {[%emt 0:03:12]} 23. Nxc5 {[%emt 0:00:03]} Nd7 {[%emt 0:02:31]} 24. Ba4 {[%emt 0:03:51]} Kc7 {[%emt 0:00:47]} 25. Nb3 {[%emt 0:00:39]} f6 {[%emt 0:09:20]} 26. Rc1 {[%emt 0:03:01]} Bb7 {[%emt 0:01:06]} 27. Ba5+ {[%emt 0:01:19]} Kd6 {[%emt 0:00:13]} 28. Rd1+ {[%emt 0:01:30]} Ke6 {[%emt 0:05:43]} 29. Bb4 {[%emt 0:00:38]} Rd8 {[%emt 0:04:20]} 30. Rd6+ {[%emt 0:01:18]} Kf7 {[%emt 0:00:02]} 31. Bxc6 {[%emt 0:01:27]} Bxc6 {[%emt 0:00:04]} 32. Rxc6 {[%emt 0:00:05]} Nc5 {[%emt 0:00:06]} 33. Nd2 {[%emt 0:00:05]} Nxe4 {[%emt 0:01:05]} 34. Nf1 {[%emt 0:00:06]} Rd1 {[%emt 0:00:11]} 35. f3 {[%emt 0:00:31]} Ng5 {[%emt 0:00:03]} 36. Rxa6 {[%emt 0:00:10]} Ne6 {[%emt 0:00:03]} 37. Rd6 {[%emt 0:01:26]} Ra1 {[%emt 0:00:03]} 38. Rd2 {[%emt 0:00:15]} h5 {[%emt 0:00:17]} 39. Kf2 {[%emt 0:00:09]} h4 {[%emt 0:00:08]} 40. Ne3 {[%emt 0:00:00]} Kg6 {[%emt 0:00:00]} 41. Nd5 {[%emt 0:01:59]} Kg5 {[%emt 0:01:00]} 42. Nc3 {[%emt 0:00:15]} Nf4 {[%emt 0:00:52]} 43. Rd1 {[%emt 0:01:24]} 1-0

[Event "AUT Bundesliga 2022-23"]
[Site "Jenbach"]
[Date "2022.11.03"]
[Round "1.3"]
[White "Hess, Max"]
[Black "Sebenik, Matej"]
[Result "0-1"]
[ECO "D02"]
[WhiteElo "2361"]
[BlackElo "2518"]
[Annotator "ChessBase"]
[PlyCount "104"]
[EventDate "2022.11.03"]
[EventType "team-tourn"]
[EventCountry "AUT"]
[SourceTitle "playchess.com"]
[Source "ChessBase"]
[SourceQuality "1"]
[TimeControl "40/5400+30:1800+30"]

1. d4 {[%emt 0:00:03]} d5 {[%emt 0:00:24]} 2. Nf3 {[%emt 0:00:29]} Nf6 {[%emt 0:00:56]} 3. g3 {[%emt 0:00:44]} c6 {[%emt 0:01:51]} 4. Bg2 {[%emt 0:00:12]} Bg4 {[%emt 0:00:08]} 5. c4 {[%emt 0:01:58]} e6 {[%emt 0:00:47]} 6. O-O {[%emt 0:02:25]} Nbd7 {[%emt 0:00:19]} 7. h3 {[%emt 0:00:30]} Bf5 {[%emt 0:03:37]} 8. cxd5 {[%emt 0:22:18]} exd5 {[%emt 0:15:45]} 9. Qb3 {[%emt 0:00:39]} Qb6 {[%emt 0:01:43]} 10. Qe3+ {[%emt 0:01:09]} Be7 {[%emt 0:00:09]} 11. Nh4 {[%emt 0:01:11]} Bg6 {[%emt 0:19:36]} 12. Nc3 {[%emt 0:05:11]} Qd8 {[%emt 0:00:20]} 13. Nxg6 {[%emt 0:00:25]} hxg6 {[%emt 0:00:05]} 14. Qd3 {[%emt 0:00:09]} O-O {[%emt 0:00:07]} 15. Bf3 {[%emt 0:00:27]} Re8 {[%emt 0:00:07]} 16. Kg2 {[%emt 0:01:09]} Nb6 {[%emt 0:00:07]} 17. h4 {[%emt 0:00:26]} Qd7 {[%emt 0:25:52]} 18. Bg5 {[%emt 0:26:44]} Nc4 {[%emt 0:02:50]} 19. Rab1 {[%emt 0:02:52]} Rad8 {[%emt 0:09:05]} 20. Bxf6 {[%emt 0:11:19]} gxf6 {[%emt 0:02:01]} 21. e3 {[%emt 0:08:41]} Bb4 {[%emt 0:03:32]} 22. a3 {[%emt 0:02:43]} Bxc3 {[%emt 0:00:45]} 23. Qxc3 {[%emt 0:00:02]} Kg7 {[%emt 0:00:28]} 24. Be2 {[%emt 0:01:07]} Nd6 {[%emt 0:01:16]} 25. Bd3 {[%emt 0:00:04]} Rh8 {[%emt 0:03:26]} 26. Rh1 {[%emt 0:00:35]} Rde8 {[%emt 0:00:45]} 27. Qc2 {[%emt 0:00:22]} f5 {[%emt 0:01:36]} 28. Qe2 {[%emt 0:01:49]} Ne4 {[%emt 0:01:28]} 29. Bxe4 {[%emt 0:01:16]} fxe4 {[%emt 0:03:44]} 30. b4 {[%emt 0:00:52]} a6 {[%emt 0:00:49]} 31. Rbc1 {[%emt 0:04:04]} Rh5 {[%emt 0:00:06]} 32. a4 {[%emt 0:01:50]} Rf5 {[%emt 0:00:04]} 33. b5 {[%emt 0:01:36]} axb5 {[%emt 0:00:05]} 34. axb5 {[%emt 0:00:01]} Rf3 {[%emt 0:00:08]} 35. bxc6 {[%emt 0:00:29]} bxc6 {[%emt 0:00:03]} 36. Qa6 {[%emt 0:00:55]} Re6 {[%emt 0:01:04]} 37. Qa8 {[%emt 0:01:16]} Ref6 {[%emt 0:00:22]} 38. Rc2 {[%emt 0:00:13]} Qg4 {[%emt 0:02:45]} 39. Qb8 {[%emt 0:00:47]} Qf5 {[%emt 0:00:39]} 40. Qb2 {[%emt 0:00:00]} Kh7 {[%emt 0:00:00]} 41. Rd2 {[%emt 0:07:21]} c5 {[%emt 0:19:12]} 42. dxc5 {[%emt 0:06:10]} d4 {[%emt 0:00:05]} 43. Qxd4 {[%emt 0:03:56]} Rxf2+ {[%emt 0:00:05]} 44. Rxf2 {[%emt 0:00:02]} Qxf2+ {[%emt 0:00:05]} 45. Kh3 {[%emt 0:00:02]} Qf5+ {[%emt 0:00:04]} 46. Kh2 {[%emt 0:01:39]} Qf2+ {[%emt 0:00:47]} 47. Kh3 {[%emt 0:00:01]} Rf3 {[%emt 0:00:11]} 48. Qe5 {[%emt 0:00:49]} Rxe3 {[%emt 0:00:45]} 49. Rb1 {[%emt 0:07:22]} Qf3 {[%emt 0:13:05]} 50. Rb8 {[%emt 0:05:00]} Qf1+ {[%emt 0:00:05]} 51. Kg4 {[%emt 0:00:06]} Qd1+ {[%emt 0:00:36]} 52. Kh3 {[%emt 0:03:16]} Qd7+ {[%emt 0:00:06]} 0-1

[Event "AUT Bundesliga 2022-23"]
[Site "Jenbach"]
[Date "2022.11.03"]
[Round "1.4"]
[White "Subelj, Jan"]
[Black "Brunello, Marina"]
[Result "1-0"]
[ECO "B90"]
[WhiteElo "2494"]
[BlackElo "2343"]
[Annotator "ChessBase"]
[PlyCount "95"]
[EventDate "2022.11.03"]
[EventType "team-tourn"]
[EventCountry "AUT"]
[SourceTitle "playchess.com"]
[Source "ChessBase"]
[SourceQuality "1"]
[TimeControl "40/5400+30:1800+30"]

1. e4 {[%emt 0:00:18]} c5 {[%emt 0:00:08]} 2. Nf3 {[%emt 0:00:50]} d6 {[%emt 0:00:14]} 3. d4 {[%emt 0:04:35]} cxd4 {[%emt 0:00:29]} 4. Nxd4 {[%emt 0:00:08]} Nf6 {[%emt 0:00:05]} 5. Nc3 {[%emt 0:00:45]} a6 {[%emt 0:00:04]} 6. Rg1 {[%emt 0:00:33]} e5 {[%emt 0:08:48]} 7. Nb3 {[%emt 0:00:38]} b5 {[%emt 0:06:50]} 8. a4 {[%emt 0:03:51]} b4 {[%emt 0:10:52]} 9. Nd5 {[%emt 0:00:22]} Bb7 {[%emt 0:00:07]} 10. Bg5 {[%emt 0:31:04]} Nbd7 {[%emt 0:01:31]} 11. Bc4 {[%emt 0:00:11]} Be7 {[%emt 0:20:16]} 12. Nxe7 {[%emt 0:02:07]} Qxe7 {[%emt 0:01:14]} 13. f3 {[%emt 0:00:42]} Nb6 {[%emt 0:06:21]} 14. Be2 {[%emt 0:01:58]} d5 {[%emt 0:02:34]} 15. a5 {[%emt 0:00:53]} Nbd7 {[%emt 0:01:44]} 16. exd5 {[%emt 0:02:52]} Qd6 {[%emt 0:02:33]} 17. c4 {[%emt 0:12:54]} bxc3 {[%emt 0:03:18]} 18. bxc3 {[%emt 0:02:49]} e4 {[%emt 0:05:57]} 19. c4 {[%emt 0:05:56]} Qxh2 {[%emt 0:03:02]} 20. Kf2 {[%emt 0:03:13]} O-O {[%emt 0:05:42]} 21. Rh1 {[%emt 0:03:38]} Qd6 {[%emt 0:01:05]} 22. Be3 {[%emt 0:01:10]} Ne5 {[%emt 0:01:17]} 23. Nc5 {[%emt 0:02:11]} Bc8 {[%emt 0:02:56]} 24. Qd4 {[%emt 0:01:14]} exf3 {[%emt 0:03:16]} 25. gxf3 {[%emt 0:00:06]} Ng6 {[%emt 0:00:02]} 26. Rab1 {[%emt 0:07:04]} Rb8 {[%emt 0:02:06]} 27. Rxb8 {[%emt 0:00:51]} Qxb8 {[%emt 0:00:03]} 28. Ne4 {[%emt 0:00:11]} Nxe4+ {[%emt 0:00:20]} 29. Qxe4 {[%emt 0:00:06]} Bd7 {[%emt 0:01:30]} 30. Qd4 {[%emt 0:04:30]} Re8 {[%emt 0:02:56]} 31. Bd3 {[%emt 0:01:09]} Qb3 {[%emt 0:02:37]} 32. c5 {[%emt 0:00:26]} Qa2+ {[%emt 0:01:15]} 33. Kg3 {[%emt 0:00:07]} Qxa5 {[%emt 0:00:04]} 34. Be4 {[%emt 0:01:38]} f5 {[%emt 0:00:42]} 35. Bd2 {[%emt 0:02:11]} Qd8 {[%emt 0:02:46]} 36. Bd3 {[%emt 0:00:19]} Ne5 {[%emt 0:00:25]} 37. Bb1 {[%emt 0:03:28]} Qf6 {[%emt 0:00:53]} 38. c6 {[%emt 0:01:46]} Qg6+ {[%emt 0:02:45]} 39. Kf2 {[%emt 0:00:01]} Bxc6 {[%emt 0:00:30]} 40. dxc6 {[%emt 0:00:00]} Nxc6 {[%emt 0:00:00]} 41. Qd5+ {[%emt 0:00:36]} Kf8 {[%emt 0:04:24]} 42. Bxf5 {[%emt 0:00:57]} Re2+ {[%emt 0:00:20]} 43. Kxe2 {[%emt 0:00:07]} Qg2+ {[%emt 0:00:03]} 44. Kd3 {[%emt 0:00:10]} Qxh1 {[%emt 0:00:04]} 45. Kc2 {[%emt 0:03:17]} Ne7 {[%emt 0:05:47]} 46. Bb4 {[%emt 0:01:45]} Qh4 {[%emt 0:02:44]} 47. Be6 {[%emt 0:01:30]} Qf2+ {[%emt 0:04:38]} 48. Kb3 {[%emt 0:00:32]} 1-0

[Event "AUT Bundesliga 2022-23"]
[Site "Jenbach"]
[Date "2022.11.03"]
[Round "1.5"]
[White "Ciolek, Andreas"]
[Black "Diermair, Andreas"]
[Result "0-1"]
[ECO "A46"]
[WhiteElo "2301"]
[BlackElo "2455"]
[Annotator "ChessBase"]
[PlyCount "70"]
[EventDate "2022.11.03"]
[EventType "team-tourn"]
[EventCountry "AUT"]
[SourceTitle "playchess.com"]
[Source "ChessBase"]
[SourceQuality "1"]
[TimeControl "40/5400+30:1800+30"]

1. d4 {[%emt 0:00:12]} Nf6 {[%emt 0:00:16]} 2. Nf3 {[%emt 0:00:21]} d5 {[%emt 0:00:31]} 3. g3 {[%emt 0:00:42]} c5 {[%emt 0:04:17]} 4. Bg2 {[%emt 0:01:20]} cxd4 {[%emt 0:04:14]} 5. O-O {[%emt 0:00:50]} h6 {[%emt 0:01:13]} 6. b3 {[%emt 0:00:39]} Nbd7 {[%emt 0:03:51]} 7. Nxd4 {[%emt 0:05:58]} e5 {[%emt 0:02:31]} 8. Nf3 {[%emt 0:00:41]} Bc5 {[%emt 0:02:29]} 9. Nc3 {[%emt 0:08:29]} e4 {[%emt 0:07:37]} 10. Nd4 {[%emt 0:02:46]} O-O {[%emt 0:02:43]} 11. Na4 {[%emt 0:01:58]} Bb4 {[%emt 0:06:03]} 12. a3 {[%emt 0:11:15]} Ba5 {[%emt 0:01:58]} 13. Bb2 {[%emt 0:02:09]} Ne5 {[%emt 0:04:12]} 14. Ne6 {[%emt 0:05:22]} Bxe6 {[%emt 0:00:50]} 15. Bxe5 {[%emt 0:00:08]} Rc8 {[%emt 0:00:48]} 16. Bd4 {[%emt 0:06:55]} b5 {[%emt 0:03:56]} 17. Nc5 {[%emt 0:01:18]} Bb6 {[%emt 0:00:20]} 18. Nxe6 {[%emt 0:01:27]} fxe6 {[%emt 0:00:02]} 19. Rc1 {[%emt 0:02:52]} Rc6 {[%emt 0:08:49]} 20. Qd2 {[%emt 0:10:20]} Qc7 {[%emt 0:03:58]} 21. e3 {[%emt 0:10:30]} Bxd4 {[%emt 0:04:39]} 22. Qxd4 {[%emt 0:00:55]} e5 {[%emt 0:00:59]} 23. Qb4 {[%emt 0:01:51]} Rb8 {[%emt 0:00:45]} 24. f3 {[%emt 0:03:17]} Rc3 {[%emt 0:01:01]} 25. a4 {[%emt 0:00:53]} a5 {[%emt 0:01:11]} 26. Qa3 {[%emt 0:00:07]} b4 {[%emt 0:00:27]} 27. Qb2 {[%emt 0:00:04]} exf3 {[%emt 0:03:40]} 28. Rxf3 {[%emt 0:00:57]} e4 {[%emt 0:01:08]} 29. Rxf6 {[%emt 0:01:53]} gxf6 {[%emt 0:00:06]} 30. Rf1 {[%emt 0:00:09]} Qc5 {[%emt 0:02:55]} 31. Qa1 {[%emt 0:00:41]} Qxe3+ {[%emt 0:00:34]} 32. Kh1 {[%emt 0:00:04]} Qe2 {[%emt 0:06:53]} 33. Rxf6 {[%emt 0:01:59]} Rf8 {[%emt 0:01:18]} 34. Rxh6 {[%emt 0:00:58]} Qxc2 {[%emt 0:02:08]} 35. h4 {[%emt 0:03:51]} Qd2 {[%emt 0:01:39]} 0-1

[Event "AUT Bundesliga 2022-23"]
[Site "Jenbach"]
[Date "2022.11.03"]
[Round "1.6"]
[White "Schreiner, Peter"]
[Black "Wachinger, Guenther"]
[Result "1/2-1/2"]
[ECO "B23"]
[WhiteElo "2404"]
[BlackElo "2218"]
[Annotator "ChessBase"]
[PlyCount "128"]
[EventDate "2022.11.03"]
[EventType "team-tourn"]
[EventCountry "AUT"]
[SourceTitle "playchess.com"]
[Source "ChessBase"]
[SourceQuality "1"]
[TimeControl "40/5400+30:1800+30"]

1. e4 {[%emt 0:00:19]} c5 {[%emt 0:00:15]} 2. Nc3 {[%emt 0:00:07]} e6 {[%emt 0:00:15]} 3. Nf3 {[%emt 0:00:16]} a6 {[%emt 0:00:23]} 4. g3 {[%emt 0:00:13]} b5 {[%emt 0:00:31]} 5. Bg2 {[%emt 0:00:49]} Bb7 {[%emt 0:00:10]} 6. d4 {[%emt 0:02:17]} cxd4 {[%emt 0:01:46]} 7. Nxd4 {[%emt 0:04:29]} Nf6 {[%emt 0:01:09]} 8. O-O {[%emt 0:03:12]} b4 {[%emt 0:05:43]} 9. Na4 {[%emt 0:00:12]} Bxe4 {[%emt 0:00:23]} 10. Bxe4 {[%emt 0:04:43]} Nxe4 {[%emt 0:00:03]} 11. c4 {[%emt 0:07:41]} bxc3 {[%emt 0:04:59]} 12. bxc3 {[%emt 0:03:42]} Nc5 {[%emt 0:06:02]} 13. Nxc5 {[%emt 0:20:11]} Bxc5 {[%emt 0:00:24]} 14. Be3 {[%emt 0:01:00]} Ba7 {[%emt 0:11:33]} 15. Rb1 {[%emt 0:12:07]} O-O {[%emt 0:05:18]} 16. Rb7 {[%emt 0:06:38]} Qc8 {[%emt 0:07:29]} 17. Rxa7 {[%emt 0:12:04]} Rxa7 {[%emt 0:00:12]} 18. Nxe6 {[%emt 0:00:07]} dxe6 {[%emt 0:00:38]} 19. Bxa7 {[%emt 0:00:05]} Qxc3 {[%emt 0:02:39]} 20. Qd6 {[%emt 0:00:59]} Qc8 {[%emt 0:03:34]} 21. Bxb8 {[%emt 0:05:50]} Qxb8 {[%emt 0:00:26]} 22. Qxa6 {[%emt 0:00:06]} Qa8 {[%emt 0:01:59]} 23. Qe2 {[%emt 0:04:03]} Qc6 {[%emt 0:03:56]} 24. Rb1 {[%emt 0:03:34]} h6 {[%emt 0:01:52]} 25. Qe5 {[%emt 0:02:34]} Qd5 {[%emt 0:11:48]} 26. Qxd5 {[%emt 0:00:49]} exd5 {[%emt 0:00:10]} 27. a4 {[%emt 0:00:14]} Ra8 {[%emt 0:00:16]} 28. Ra1 {[%emt 0:00:23]} Ra5 {[%emt 0:01:56]} 29. Kf1 {[%emt 0:00:11]} Kf8 {[%emt 0:00:12]} 30. Ke2 {[%emt 0:00:06]} Ke7 {[%emt 0:00:06]} 31. Kd3 {[%emt 0:01:04]} Kd6 {[%emt 0:00:09]} 32. Kd4 {[%emt 0:00:23]} f6 {[%emt 0:00:08]} 33. g4 {[%emt 0:03:27]} g5 {[%emt 0:02:52]} 34. h3 {[%emt 0:00:42]} Kc6 {[%emt 0:00:14]} 35. Rc1+ {[%emt 0:00:41]} Kd6 {[%emt 0:00:06]} 36. Ra1 {[%emt 0:00:05]} Kc6 {[%emt 0:00:04]} 37. Rc1+ {[%emt 0:02:04]} Kd6 {[%emt 0:02:23]} 38. Ra1 {[%emt 0:00:02]} Kc6 {[%emt 0:00:14]} 39. Ra2 {[%emt 0:00:17]} Kd6 {[%emt 0:00:20]} 40. Kc3 {[%emt 0:00:00]} Kc5 {[%emt 0:00:00]} 41. Ra1 {[%emt 0:09:48]} d4+ {[%emt 0:04:05]} 42. Kd3 {[%emt 0:00:49]} Kd5 {[%emt 0:00:53]} 43. Ra3 {[%emt 0:11:05]} Kc5 {[%emt 0:00:36]} 44. Ra1 {[%emt 0:03:26]} Kd5 {[%emt 0:00:09]} 45. Ra2 {[%emt 0:02:16]} Ke5 {[%emt 0:10:42]} 46. Ra3 {[%emt 0:00:37]} Kd5 {[%emt 0:00:07]} 47. f3 {[%emt 0:00:11]} Kc5 {[%emt 0:00:22]} 48. Ra2 {[%emt 0:01:25]} Kd5 {[%emt 0:00:10]} 49. Ra3 {[%emt 0:02:42]} Kc5 {[%emt 0:00:09]} 50. Ra1 {[%emt 0:00:30]} Kd5 {[%emt 0:00:09]} 51. Ra2 {[%emt 0:00:31]} Ke5 {[%emt 0:07:11]} 52. Kc4 {[%emt 0:00:26]} Kf4 {[%emt 0:03:50]} 53. Kxd4 {[%emt 0:00:33]} Kxf3 {[%emt 0:00:24]} 54. Kc4 {[%emt 0:03:09]} f5 {[%emt 0:03:09]} 55. gxf5 {[%emt 0:01:19]} Rxf5 {[%emt 0:00:11]} 56. a5 {[%emt 0:00:12]} h5 {[%emt 0:00:31]} 57. a6 {[%emt 0:00:59]} Rf8 {[%emt 0:00:28]} 58. a7 {[%emt 0:00:18]} Ra8 {[%emt 0:02:07]} 59. Kb5 {[%emt 0:01:04]} g4 {[%emt 0:00:17]} 60. hxg4 {[%emt 0:00:19]} hxg4 {[%emt 0:00:12]} 61. Kb6 {[%emt 0:00:26]} g3 {[%emt 0:00:10]} 62. Kb7 {[%emt 0:00:16]} Rxa7+ {[%emt 0:00:13]} 63. Kxa7 {[%emt 0:00:05]} g2 {[%emt 0:00:07]} 64. Rxg2 {[%emt 0:00:03]} Kxg2 {[%emt 0:00:08]} 1/2-1/2

[Event "AUT Bundesliga 2022-23"]
[Site "Jenbach"]
[Date "2022.11.03"]
[Round "1.7"]
[White "Baumegger, Siegfried"]
[Black "Dragnev, Valentin"]
[Result "0-1"]
[ECO "B13"]
[WhiteElo "2441"]
[BlackElo "2544"]
[Annotator "ChessBase"]
[PlyCount "58"]
[EventDate "2022.11.03"]
[EventType "team-tourn"]
[EventCountry "AUT"]
[SourceTitle "playchess.com"]
[Source "ChessBase"]
[SourceQuality "1"]
[TimeControl "40/5400+30:1800+30"]

1. e4 {[%emt 0:00:07]} c6 {[%emt 0:00:15]} 2. d4 {[%emt 0:00:17]} d5 {[%emt 0:00:07]} 3. exd5 {[%emt 0:00:15]} cxd5 {[%emt 0:00:08]} 4. c4 {[%emt 0:00:04]} Nf6 {[%emt 0:00:11]} 5. Nc3 {[%emt 0:00:08]} Nc6 {[%emt 0:00:31]} 6. Nf3 {[%emt 0:00:17]} a6 {[%emt 0:00:14]} 7. Bg5 {[%emt 0:11:44]} Be6 {[%emt 0:01:30]} 8. Rc1 {[%emt 0:16:43]} g6 {[%emt 0:07:29]} 9. Bxf6 {[%emt 0:04:05]} exf6 {[%emt 0:00:06]} 10. cxd5 {[%emt 0:00:16]} Bxd5 {[%emt 0:00:09]} 11. Nxd5 {[%emt 0:00:48]} Qxd5 {[%emt 0:00:09]} 12. Bc4 {[%emt 0:00:53]} Qa5+ {[%emt 0:07:07]} 13. Kf1 {[%emt 0:00:36]} Bh6 {[%emt 0:00:44]} 14. Qe2+ {[%emt 0:05:40]} Kf8 {[%emt 0:01:06]} 15. Re1 {[%emt 0:08:35]} Qc7 {[%emt 0:03:24]} 16. g3 {[%emt 0:08:04]} Kg7 {[%emt 0:01:17]} 17. Kg2 {[%emt 0:00:20]} Rhd8 {[%emt 0:05:53]} 18. Rd1 {[%emt 0:02:52]} Rac8 {[%emt 0:00:50]} 19. Bb3 {[%emt 0:02:07]} Na5 {[%emt 0:02:34]} 20. Rhe1 {[%emt 0:02:08]} Nxb3 {[%emt 0:03:26]} 21. axb3 {[%emt 0:00:12]} Qc6 {[%emt 0:08:41]} 22. Qd3 {[%emt 0:06:13]} Qd5 {[%emt 0:04:16]} 23. Re7 {[%emt 0:03:56]} Rd6 {[%emt 0:13:48]} 24. Rde1 {[%emt 0:11:23]} Rb6 {[%emt 0:03:49]} 25. Qe4 {[%emt 0:00:11]} Qxb3 {[%emt 0:03:33]} 26. d5 {[%emt 0:02:24]} Kg8 {[%emt 0:05:20]} 27. Nd4 {[%emt 0:02:15]} Qb4 {[%emt 0:01:18]} 28. Kg1 {[%emt 0:10:43]} Bf8 {[%emt 0:01:08]} 29. Rd7 {[%emt 0:01:07]} Qa4 {[%emt 0:01:21]} 0-1